bitfinex-derivatives/quotes_ETHF0:USTF0_20241020
["timestamp","ask_amount","ask_price","bid_price","bid_amount"]
[1729405052467,5.91629164,2645.1,2645.0,0.37809]
[1729405052762,2.44227131,2645.1,2645.0,0.37809]
[1729405053157,2.97765307,2645.1,2645.0,0.37809]
[1729405057973,0.8088,2645.2,2645.0,0.37809]
[1729405057974,3.78645307,2645.2,2645.0,0.37809]
[1729405058170,3.78645307,2645.2,2644.9,1.6174]
[1729405058364,3.78645307,2645.2,2645.1,0.37807]
[1729405058574,6.22849273,2645.2,2645.1,0.37807]
[1729405058764,6.22849273,2645.2,2645.0,0.37808]
[1729405058964,3.78645307,2645.2,2644.9,1.6174]
[1729405059169,3.78645307,2645.2,2645.1,0.37807]
[1729405059371,6.22849123,2645.2,2645.1,0.37807]
[1729405061959,6.69098274,2645.2,2645.1,0.37807]
[1729405063873,3.71332967,2645.2,2645.1,0.37807]
[1729405064674,6.69061527,2645.2,2645.1,0.37807]
[1729405064871,3.71332967,2645.2,2645.1,0.37807]
[1729405065263,6.69059661,2645.2,2645.1,0.37807]
[1729405066067,3.71332967,2645.2,2645.1,0.37807]
[1729405066263,4.24855808,2645.2,2645.1,0.37807]
[1729405066668,6.22810473,2645.2,2645.1,0.37807]
[1729405067280,6.69060088,2645.2,2645.1,0.37807]
[1729405068282,7.18735464,2645.2,2645.1,0.37807]
[1729405069681,6.72485849,2645.2,2645.1,0.37807]
[1729405071579,7.10291849,2645.2,2645.1,0.37807]
[1729405072484,6.72485849,2645.2,2645.1,0.37807]
[1729405073176,7.10291849,2645.2,2645.1,0.37807]
[1729405075377,3.62889816,2645.2,2645.1,0.37807]
[1729405075578,3.25083816,2645.2,2645.1,0.37807]
[1729405076680,3.62889816,2645.2,2645.1,0.37807]
[1729405077088,4.09150892,2645.2,2645.1,0.37807]
[1729405079687,4.09150892,2645.2,2645.0,1.60148]
[1729405079884,2.97833141,2645.1,2645.0,1.60148]
[1729405080786,5.42865849,2645.1,2645.0,1.60148]
[1729405081791,2.97833141,2645.1,2645.0,1.60148]
[1729405081984,5.42865849,2645.1,2645.0,1.60148]
[1729405082580,2.97833141,2645.1,2645.0,1.60148]
[1729405082885,5.42868891,2645.1,2645.0,1.60148]
[1729405083089,2.97833141,2645.1,2645.0,1.60148]
[1729405086786,5.42875881,2645.1,2645.0,1.60148]
[1729405087286,2.97833141,2645.1,2645.0,1.60148]
[1729405090590,2.45047058,2645.1,2645.0,1.60148]
[1729405096284,5.42916459,2645.1,2645.0,1.60148]
[1729405098390,3.88832033,2645.2,2645.0,1.60148]
[1729405098391,3.39299401,2645.2,2645.0,1.60148]
[1729405103395,3.39299401,2645.2,2645.1,0.37807]
[1729405105497,2.86430219,2645.2,2645.1,0.37807]
[1729405110108,3.3919656,2645.2,2645.1,0.37807]
[1729405110305,2.86430219,2645.2,2645.1,0.37807]
[1729405113504,3.39194854,2645.2,2645.1,0.37807]
[1729405114603,0.4143,2645.2,2645.1,0.37807]
[1729405120498,3.39194854,2645.2,2645.1,0.37807]
[1729405121501,5.84143407,2645.2,2645.1,0.37807]
[1729405122609,5.84143407,2645.2,2645.1,1.19707]
[1729405128710,0.4143,2645.2,2645.1,1.19707]
[1729405135709,3.39194854,2645.2,2645.1,1.19707]
[1729405135910,5.85437408,2645.2,2645.1,1.19707]
[1729405139922,5.85480476,2645.2,2645.1,1.19707]
[1729405140421,2.87672554,2645.2,2645.1,1.19707]
[1729405142014,2.87672554,2645.2,2645.1,0.819]
[1729405142526,2.87672554,2645.2,2645.1,1.19707]
[1729405142823,3.39273155,2645.2,2645.1,1.19707]
[1729405145023,0.4143,2645.2,2645.1,1.19707]
[1729405145418,3.39273155,2645.2,2645.1,1.19707]
[1729405146622,0.4143,2645.2,2645.1,1.19707]
[1729405146826,0.4143,2645.2,2645.1,0.819]
[1729405147625,0.4143,2645.2,2645.1,0.81596185]
[1729405148433,0.4143,2645.2,2645.1,1.19403185]
[1729405148732,3.39273155,2645.2,2645.1,1.19403185]
[1729405148927,0.4143,2645.2,2645.1,1.19403185]
[1729405149628,3.39273155,2645.2,2645.1,1.19403185]
[1729405150019,0.4143,2645.2,2645.1,1.19403185]
[1729405157924,3.39273155,2645.2,2645.1,1.19403185]
[1729405158324,5.86840515,2645.2,2645.1,1.19403185]
[1729405159017,3.39273155,2645.2,2645.1,1.19403185]
[1729405160233,5.868495,2645.2,2645.1,1.19403185]
[1729405165333,3.39273155,2645.2,2645.1,1.19403185]
[1729405165631,5.86849793,2645.2,2645.1,1.19403185]
[1729405166132,0.4143,2645.2,2645.1,1.19403185]
[1729405167529,2.97843155,2645.3,2645.1,1.19403185]
[1729405167740,2.97843155,2645.4,2645.2,0.8023]
[1729405168035,5.45410511,2645.4,2645.3,0.37804]
[1729405168239,2.97843155,2645.4,2645.3,0.37804]
[1729405169641,0.37799,2645.7,2645.4,0.37803]
[1729405169642,2.97843155,2645.5,2645.4,0.37803]
[1729405169840,2.97843155,2645.6,2645.5,0.37801]
[1729405170031,5.46839995,2645.6,2645.5,0.37801]
[1729405170426,2.97843155,2645.6,2645.5,0.37801]
[1729405170730,2.97843155,2645.7,2645.5,0.37801]
[1729405172339,2.97843155,2645.7,2645.6,0.818]
[1729405173638,4.16281155,2645.8,2645.6,0.818]
[1729405173943,2.97843155,2645.7,2645.6,0.818]
[1729405174631,3.78483155,2645.8,2645.6,0.818]
[1729405174835,4.16280155,2645.8,2645.6,0.818]
[1729405176538,3.78483155,2645.8,2645.6,0.818]
[1729405176829,3.78483155,2645.8,2645.6,1.2175]
[1729405179730,3.78483155,2645.8,2645.6,1.5955]
[1729405180936,2.97843155,2645.7,2645.6,1.5955]
[1729405182339,2.97843155,2645.7,2645.6,1.2175]
[1729405182540,3.78483155,2645.8,2645.6,1.2175]
[1729405183237,4.16280155,2645.8,2645.6,1.2175]
[1729405184739,3.78483155,2645.8,2645.6,1.5955]
[1729405184938,3.78483155,2645.8,2645.6,1.2175]
[1729405185139,4.16281155,2645.8,2645.6,1.2175]
[1729405185347,3.37323155,2645.8,2645.7,0.4208]
[1729405185734,5.87162425,2645.8,2645.7,0.4208]
[1729405186839,6.24959425,2645.8,2645.7,0.4208]
[1729405187737,5.87162425,2645.8,2645.7,0.4208]
[1729405187940,0.3948,2645.8,2645.7,0.4208]
[1729405189145,0.77277,2645.8,2645.7,0.4208]
[1729405190647,2.47685425,2645.8,2645.7,0.4208]
[1729405190839,2.47685425,2645.8,2645.7,0.79879]
[1729405191737,2.47685425,2645.8,2645.7,0.4208]
[1729405191935,2.47685425,2645.8,2645.7,0.79879]
[1729405192749,2.47397304,2645.8,2645.7,0.79879]
[1729405194141,0.4111,2645.9,2645.7,0.79879]
[1729405194645,0.4111,2645.9,2645.7,0.4208]
[1729405195442,0.4111,2645.9,2645.7,0.79878]
[1729405196549,0.4111,2645.9,2645.7,0.4208]
[1729405196853,0.4111,2645.9,2645.8,0.37797]
[1729405197151,0.4111,2645.9,2645.7,0.79877]
[1729405199457,0.4111,2645.9,2645.7,0.4208]
[1729405200151,0.4111,2645.9,2645.7,0.79878]
[1729405200647,0.4111,2645.9,2645.7,0.4208]
[1729405200847,0.4111,2645.9,2645.7,0.79878]
[1729405201043,0.4111,2645.9,2645.7,0.4208]
[1729405201440,0.4111,2645.9,2645.7,0.79878]
[1729405201642,0.4111,2645.9,2645.7,0.4208]
[1729405201943,0.4111,2645.9,2645.7,0.79878]
[1729405202352,0.4111,2645.9,2645.7,0.4208]
[1729405202654,0.4111,2645.9,2645.7,0.79878]
[1729405203444,0.4111,2645.9,2645.7,0.4208]
[1729405203844,0.4111,2645.9,2645.7,0.79878]
[1729405205551,0.4111,2645.9,2645.7,0.4208]
[1729405206351,0.4111,2645.9,2645.7,0.79879]
[1729405207455,3.38503155,2646.1,2645.7,0.4208]
[1729405207645,3.38503155,2646.1,2645.9,0.37794]
[1729405207847,0.4066,2646.1,2645.9,0.37794]
[1729405208049,0.4066,2646.1,2646.0,0.4045]
[1729405208355,0.4249,2646.2,2646.0,0.4045]
[1729405208557,0.8449,2646.2,2646.1,0.817]
[1729405211047,0.8449,2646.2,2646.0,0.78244]
[1729405211454,1.22282,2646.2,2646.1,0.817]
[1729405211655,1.22281,2646.2,2646.1,0.817]
[1729405211956,0.8449,2646.2,2646.1,0.817]
[1729405212857,1.22281,2646.2,2646.1,0.817]
[1729405214058,4.20124155,2646.2,2646.1,0.817]
[1729405218253,1.22281,2646.2,2646.1,0.817]
[1729405228061,0.37791,2646.2,2646.1,0.817]
[1729405228266,0.37791,2646.2,2646.1,1.2446]
[1729405240263,1.98838437,2646.2,2646.1,1.2446]
[1729405241069,1.98840133,2646.2,2646.1,1.2446]
[1729405245876,2.01227028,2646.2,2646.1,1.2446]
[1729405247080,1.63436028,2646.2,2646.1,1.2446]
[1729405248886,2.01227028,2646.2,2646.1,1.2446]
[1729405249381,4.99070183,2646.2,2646.1,1.2446]
[1729405249686,4.61279183,2646.2,2646.1,1.2446]
[1729405250782,4.61331234,2646.2,2646.1,1.2446]
[1729405252282,7.22986225,2646.2,2646.1,1.2446]
[1729405253679,7.2277507,2646.2,2646.1,1.2446]
[1729405253888,7.22855172,2646.2,2646.1,1.2446]
[1729405254589,4.25223172,2646.2,2646.1,1.2446]
[1729405254775,4.63014172,2646.2,2646.1,1.2446]
[1729405254976,5.59299843,2646.2,2646.1,1.2446]
[1729405255181,3.35435852,2646.2,2646.1,1.2446]
[1729405255381,4.61213033,2646.2,2646.1,1.2446]
[1729405255582,4.61219242,2646.2,2646.1,1.2446]
[1729405256485,4.99010242,2646.2,2646.1,1.2446]
[1729405256791,4.61219242,2646.2,2646.1,1.2446]
[1729405257691,4.99010242,2646.2,2646.1,1.2436]
[1729405257890,4.61219242,2646.2,2646.1,1.2436]
[1729405259077,4.61219242,2646.2,2646.0,0.4045]
[1729405259283,2.4623439,2646.1,2646.0,1.2205]
[1729405259484,2.8402739,2646.1,2646.0,1.2205]
[1729405259689,5.81672242,2646.1,2646.0,1.2205]
[1729405259993,2.8402739,2646.1,2646.0,1.2205]
[1729405260193,4.18097852,2646.1,2646.0,1.2205]
[1729405260587,5.81684537,2646.1,2646.0,1.2205]
[1729405261686,5.43891537,2646.1,2646.0,1.2205]
[1729405262694,5.02511537,2646.1,2646.0,1.2205]
[1729405263189,1.63586685,2646.1,2646.0,1.99764]
[1729405263689,1.64994523,2646.1,2646.0,1.99764]
[1729405268398,1.65002096,2646.1,2646.0,1.99764]
[1729405268583,4.62646948,2646.2,2646.0,1.99764]
[1729405268782,1.65002096,2646.1,2646.0,1.99764]
[1729405268992,2.97644852,2646.3,2646.2,0.37791]
[1729405269398,7.29100046,2646.3,2646.2,0.37791]
[1729405270400,7.78857227,2646.3,2646.2,0.37791]
[1729405271689,4.31455194,2646.3,2646.2,0.37791]
[1729405271984,7.78857227,2646.3,2646.2,0.37791]
[1729405272187,4.31455194,2646.3,2646.2,0.37791]
[1729405272390,7.78857227,2646.3,2646.2,0.37791]
[1729405272589,7.78857227,2646.3,2646.1,0.37792]
[1729405272889,7.29114152,2646.2,2646.0,1.6197]
[1729405273196,1.66732029,2646.1,2646.0,1.99763]
[1729405278397,1.66732029,2646.1,2646.0,1.18163]
[1729405278591,1.66732029,2646.1,2646.0,1.99763]
[1729405281705,1.66732029,2646.1,2646.0,5.77683]
[1729405282706,1.68131544,2646.1,2646.0,5.3989]
[1729405283308,7.34791218,2646.4,2646.1,0.37792]
[1729405283494,1.68127792,2646.3,2646.1,0.37792]
[1729405283701,2.97658958,2646.4,2646.2,0.4089]
[1729405283995,1.68128791,2646.3,2646.2,0.4089]
[1729405284302,1.68128791,2646.3,2646.2,0.78681]
[1729405285499,2.97658958,2646.3,2646.2,0.78681]
[1729405285697,7.34777171,2646.3,2646.2,0.78681]
[1729405287798,7.34777171,2646.3,2646.2,0.4089]
[1729405288296,7.34777171,2646.3,2646.2,0.78681]
[1729405289097,4.65787749,2646.3,2646.2,0.78681]
[1729405291007,4.65787749,2646.3,2646.2,0.4089]
[1729405293603,1.68128791,2646.3,2646.2,0.4089]
[1729405294096,2.07598791,2646.3,2646.2,0.4089]
[1729405295205,2.07598791,2646.3,2646.2,0.78681]
[1729405295908,2.07598791,2646.3,2646.2,0.4089]
[1729405296511,2.07598791,2646.3,2646.2,1.2239]
[1729405297308,2.08501071,2646.3,2646.2,1.2239]
[1729405298707,2.08501071,2646.3,2646.2,1.60181]
[1729405299020,2.08501071,2646.3,2646.2,1.2239]
[1729405300607,3.37128958,2646.3,2646.2,1.2239]
[1729405300915,7.9904477,2646.3,2646.2,1.2239]
[1729405301911,8.01250796,2646.3,2646.2,1.2239]
[1729405303006,8.01250796,2646.3,2646.2,1.60181]
[1729405303213,7.61780796,2646.3,2646.2,1.60181]
[1729405303514,7.61780796,2646.3,2646.2,1.2239]
[1729405303914,7.42873154,2646.3,2646.2,1.2239]
[1729405305411,7.61780796,2646.3,2646.2,1.2239]
[1729405306720,7.61796407,2646.3,2646.2,1.2239]
[1729405307021,1.90160353,2646.3,2646.2,4.80961]
[1729405307412,1.71252708,2646.3,2646.2,4.80961]
[1729405307608,1.71252708,2646.3,2646.2,8.58881]
[1729405308720,1.90160353,2646.3,2646.2,5.38101]
[1729405308922,1.90160353,2646.3,2646.2,8.58881]
[1729405309415,1.71252708,2646.3,2646.2,8.58881]
[1729405311026,1.71244749,2646.3,2646.2,8.58881]
[1729405311419,1.71244749,2646.3,2646.2,5.38101]
[1729405311623,1.71242802,2646.3,2646.2,8.58881]
[1729405311921,1.71242802,2646.3,2646.2,8.98519748]
[1729405314120,1.71242802,2646.3,2646.2,5.20599748]
[1729405315726,1.71242802,2646.3,2646.2,1.99819748]
[1729405316230,1.71242802,2646.3,2646.2,5.20599748]
[1729405316424,3.40218958,2646.5,2646.2,5.20599748]
[1729405316626,1.90142553,2646.4,2646.2,1.99819748]
[1729405316824,1.90142553,2646.3,2646.2,1.99819748]
[1729405317027,1.90142553,2646.3,2646.2,5.20599748]
[1729405317319,1.90142553,2646.3,2646.2,1.99819748]
[1729405317528,1.71235815,2646.3,2646.2,5.20599748]
[1729405317722,1.71235815,2646.3,2646.2,4.4317]
[1729405320215,2.30912553,2646.3,2646.2,4.4317]
[1729405320625,2.12956611,2646.3,2646.2,1.2239]
[1729405320827,2.31863907,2646.3,2646.2,1.2239]
[1729405323932,8.07190597,2646.3,2646.2,1.2239]
[1729405324526,8.08549583,2646.3,2646.2,1.2239]
[1729405324832,5.30881851,2646.3,2646.2,1.2239]
[1729405325133,5.30881851,2646.3,2646.2,4.4317]
[1729405326722,5.30881851,2646.3,2646.2,1.2239]
[1729405327228,5.30881851,2646.3,2646.2,4.4317]
[1729405329225,3.38428958,2646.3,2646.2,4.4317]
[1729405329529,5.30411909,2646.3,2646.2,4.4317]
[1729405329929,5.30411909,2646.3,2646.2,0.815]
[1729405330830,2.32752951,2646.3,2646.2,0.815]
[1729405333730,2.70542951,2646.3,2646.2,0.815]
[1729405333932,2.32752951,2646.3,2646.2,0.815]
[1729405334832,2.32752951,2646.3,2646.0,1.1648955]
[1729405335032,2.32752951,2646.3,2646.1,0.77992287]
[1729405335033,2.34542951,2646.2,2646.1,0.77992287]
[1729405337641,2.34542951,2646.2,2646.1,1.15785287]
[1729405337849,2.34542951,2646.2,2646.1,0.77992287]
[1729405338549,2.34542951,2646.2,2646.1,0.815]
[1729405338747,0.4256,2646.2,2646.1,0.815]
[1729405339241,2.32465398,2646.2,2646.1,0.815]
[1729405343050,2.32465398,2646.2,2646.1,4.0228]
[1729405343648,2.32471851,2646.2,2646.1,4.0218]
[1729405345044,2.32471851,2646.2,2646.1,3.2078]
[1729405345255,2.32471851,2646.2,2646.1,4.0218]
[1729405347041,2.32471851,2646.2,2646.1,0.814]
[1729405348351,2.32481897,2646.2,2646.1,0.814]
[1729405348551,1.89921897,2646.2,2646.1,1.19193]
[1729405348752,1.89921897,2646.2,2646.1,1.59433]
[1729405349054,1.7101439,2646.2,2646.1,1.59433]
[1729405349353,3.16566465,2646.5,2646.2,0.37791]
[1729405349354,3.16565668,2646.5,2646.2,0.37791]
[1729405349549,1.71009215,2646.4,2646.3,0.4063]
[1729405349746,1.71009215,2646.4,2646.3,0.7965]
[1729405351248,4.68668173,2646.4,2646.3,0.7965]
[1729405351645,4.68668173,2646.4,2646.3,1.6105]
[1729405352949,4.88532807,2646.4,2646.3,1.6105]
[1729405353145,4.69625881,2646.4,2646.3,1.6105]
[1729405354259,7.63683367,2646.4,2646.3,1.6105]
[1729405354459,4.88532807,2646.4,2646.3,1.6105]
[1729405354753,4.69625881,2646.4,2646.3,1.6105]
[1729405355454,4.69625881,2646.4,2646.3,1.9884]
[1729405355957,1.71966923,2646.4,2646.3,1.9884]
[1729405356650,2.97658958,2646.4,2646.3,1.9884]
[1729405356959,4.88532807,2646.4,2646.3,1.9884]
[1729405357158,1.90873849,2646.4,2646.3,1.9884]
[1729405357659,1.90870529,2646.4,2646.3,1.6105]
[1729405357860,1.90870529,2646.4,2646.3,1.9884]
[1729405358062,1.71964019,2646.4,2646.3,1.9884]
[1729405362556,1.71942226,2646.4,2646.3,1.9884]
[1729405366255,1.71942226,2646.4,2646.3,1.6105]
[1729405366567,1.71942226,2646.4,2646.3,1.2042]
[1729405366766,5.11341184,2646.4,2646.3,1.2042]
[1729405366954,5.30247565,2646.4,2646.3,1.2042]
[1729405367165,5.30223924,2646.4,2646.3,1.2042]
[1729405367851,2.32564966,2646.4,2646.3,1.2042]
[1729405368862,2.32564966,2646.4,2646.3,1.5821]
[1729405369356,1.90824966,2646.4,2646.3,1.5821]
[1729405370455,1.71918329,2646.4,2646.3,1.5821]
[1729405371171,1.71914305,2646.4,2646.3,1.5821]
[1729405371554,1.71914305,2646.4,2646.3,1.2042]
[1729405371759,2.14374305,2646.4,2646.3,1.2042]
[1729405372067,2.33280978,2646.4,2646.3,1.5821]
[1729405376764,2.15314092,2646.4,2646.3,1.5821]
[1729405376962,2.3422052,2646.4,2646.3,1.5821]
[1729405377956,2.3422052,2646.4,2646.3,0.3902]
[1729405378170,2.3422052,2646.4,2646.3,0.813]
[1729405379276,2.3422052,2646.4,2646.3,1.1909]
[1729405380763,2.3422052,2646.4,2646.3,0.813]
[1729405381870,2.3422052,2646.4,2646.3,1.1909]
[1729405383571,1.9176052,2646.4,2646.3,1.1909]
[1729405383770,1.9176052,2646.4,2646.3,1.5844]
[1729405384466,1.72854092,2646.4,2646.3,1.5844]
[1729405384879,1.91764442,2646.4,2646.3,1.5844]
[1729405385177,1.72858226,2646.4,2646.3,1.5844]
[1729405394378,1.72885957,2646.4,2646.3,1.5844]
[1729405395474,1.72885957,2646.4,2646.3,1.2065]
[1729405395675,1.72885957,2646.4,2646.3,1.5844]
[1729405396378,1.72885957,2646.4,2646.3,1.2065]
[1729405396571,1.72885957,2646.4,2646.3,1.5844]
[1729405396772,1.72885957,2646.4,2646.3,1.2065]
[1729405396995,4.70544915,2646.4,2646.3,1.5844]
[1729405398481,1.91792238,2646.4,2646.3,1.5844]
[1729405399275,4.89471308,2646.5,2646.3,1.58439]
[1729405399593,1.9181235,2646.4,2646.3,1.58439]
[1729405399775,1.72906099,2646.4,2646.3,1.58439]
[1729405403875,4.90439922,2646.5,2646.3,1.58439]
[1729405404083,2.97658958,2646.5,2646.4,0.4169]
[1729405404389,3.1656513,2646.5,2646.4,0.4169]
[1729405404692,4.90440189,2646.5,2646.4,0.79479]
[1729405405381,1.92781231,2646.5,2646.4,0.79479]
[1729405407977,1.73875059,2646.5,2646.4,0.79479]
[1729405408176,2.48001254,2646.5,2646.4,0.79479]
[1729405408384,4.21876313,2646.5,2646.4,0.79479]
[1729405408685,2.48001254,2646.5,2646.4,0.79479]
[1729405409089,4.21820159,2646.5,2646.4,0.79479]
[1729405409277,2.48001254,2646.5,2646.4,0.79479]
[1729405409483,4.4072492,2646.5,2646.4,0.79479]
[1729405409886,4.21820159,2646.5,2646.4,0.79479]
[1729405410089,2.48001254,2646.5,2646.4,0.79479]
[1729405410293,4.21820159,2646.5,2646.4,0.79479]
[1729405410594,4.4072492,2646.5,2646.4,0.79479]
[1729405410885,4.21820159,2646.5,2646.4,0.79479]
[1729405412181,1.92723666,2646.5,2646.4,0.79479]
[1729405412382,4.21820159,2646.5,2646.4,0.79479]
[1729405412585,4.21820159,2646.5,2646.4,4.00259]
[1729405412788,1.92723666,2646.5,2646.4,4.00259]
[1729405413091,0.18904761,2646.5,2646.4,4.00259]
[1729405413386,2.669059,2646.5,2646.4,4.00259]
[1729405413581,2.669059,2646.5,2646.4,0.79479]
[1729405413582,2.48001254,2646.5,2646.4,0.79479]
[1729405413787,2.48001254,2646.5,2646.4,4.00259]
[1729405413988,4.21722491,2646.5,2646.4,4.00259]
[1729405414189,4.40627137,2646.5,2646.4,4.00259]
[1729405414380,4.21722491,2646.5,2646.4,0.79479]
[1729405414584,4.40627137,2646.5,2646.4,7.78099]
[1729405415099,4.21722491,2646.5,2646.4,4.57319]
[1729405415395,2.48001254,2646.5,2646.4,4.57319]
[1729405415689,4.21722491,2646.5,2646.4,8.19219]
[1729405416896,4.40627137,2646.5,2646.4,8.19219]
[1729405417896,4.21722491,2646.5,2646.4,4.98439]
[1729405418389,1.92582128,2646.5,2646.4,8.19219]
[1729405419192,1.73677431,2646.5,2646.4,8.19219]
[1729405419387,4.21678685,2646.5,2646.4,7.8143]
[1729405419585,4.21678685,2646.5,2646.4,8.19219]
[1729405419980,4.21678685,2646.5,2646.4,4.98439]
[1729405420197,4.21678685,2646.5,2646.4,8.19219]
[1729405420494,4.21678685,2646.5,2646.4,4.98439]
[1729405420695,4.21678685,2646.5,2646.4,8.19219]
[1729405421287,2.17120064,2646.5,2646.4,8.19219]
[1729405421795,0.18904697,2646.5,2646.4,8.19219]
[1729405422191,1.98214384,2646.5,2646.4,8.19219]
[1729405422497,1.98214384,2646.5,2646.4,4.98439]
[1729405422789,0.18904697,2646.5,2646.4,8.19219]
[1729405422989,2.48001254,2646.6,2646.4,8.19219]
[1729405423294,2.48001254,2646.6,2646.4,4.41379]
[1729405424184,2.48001254,2646.6,2646.5,0.37787]
[1729405424492,2.48001254,2646.7,2646.6,0.37786]
[1729405424699,2.48001254,2646.8,2646.6,0.78026]
[1729405424997,2.48001254,2646.8,2646.7,3.5985]
[1729405425296,2.48001254,2646.8,2646.7,3.9933]
[1729405425486,4.21637005,2646.8,2646.7,3.9933]
[1729405425683,1.73635751,2646.8,2646.7,3.9933]
[1729405425887,2.88351254,2646.9,2646.7,4.37113]
[1729405426099,2.48001254,2646.9,2646.8,0.813]
[1729405426298,4.21433697,2646.9,2646.8,0.813]
[1729405426483,2.48001254,2646.9,2646.8,0.813]
[1729405427092,4.21433697,2646.9,2646.8,0.813]
[1729405427288,2.48001254,2646.9,2646.8,0.813]
[1729405427489,2.48001254,2647.0,2646.8,1.19083]
[1729405428305,0.4155,2647.1,2646.8,0.813]
[1729405428306,4.22330909,2646.9,2646.8,0.813]
[1729405428993,4.22330909,2646.9,2646.8,1.19083]
[1729405429192,4.22330909,2646.9,2646.8,0.813]
[1729405429402,1.74329655,2646.9,2646.8,0.813]
[1729405429596,4.22330909,2646.9,2646.8,0.813]
[1729405429899,1.74329655,2646.9,2646.8,0.813]
[1729405430095,2.48001254,2647.0,2646.8,0.813]
[1729405432002,2.48001254,2647.0,2646.8,4.0208]
[1729405432200,1.97992512,2646.9,2646.8,4.0208]
[1729405432695,1.97992512,2646.9,2646.8,7.7992]
[1729405434101,1.97992512,2646.9,2646.8,4.0208]
[1729405436402,1.97992512,2647.0,2646.8,4.0208]
[1729405438205,4.2217958,2646.9,2646.5,3.2078]
[1729405438398,4.2217958,2646.9,2646.2,1.40665512]
[1729405438399,2.48001254,2646.7,2646.2,1.40665512]
[1729405438601,0.98974265,2646.3,2646.2,1.00060078]
[1729405438795,1.48459258,2646.3,2646.2,0.812]
[1729405441403,1.48459258,2646.3,2646.1,3.6321]
[1729405441705,1.48459258,2646.3,2646.2,0.63413624]
[1729405442101,1.48459258,2646.3,2646.1,3.6321]
[1729405442602,3.15574678,2646.4,2646.2,0.812]
[1729405443111,3.15574678,2646.4,2645.8,0.99093266]
[1729405443112,3.27841254,2646.4,2646.3,0.07863322]
[1729405443312,2.91044223,2646.4,2646.3,0.812]
[1729405443613,2.91044223,2646.4,2645.9,0.3983]
[1729405443807,4.20907698,2646.3,2646.0,0.812]
[1729405444006,2.47492475,2646.3,2646.0,0.812]
[1729405444512,0.1890735,2646.2,2646.0,0.812]
[1729405444812,3.27332475,2646.4,2646.0,0.812]
[1729405444813,0.1890735,2646.1,2646.0,0.812]
[1729405445304,0.1890735,2646.2,2646.0,0.812]
[1729405445514,0.1890735,2646.1,2646.0,0.812]
[1729405445809,3.27332475,2646.4,2646.0,0.812]
[1729405446012,1.90643542,2646.3,2646.0,0.812]
[1729405446214,1.48479615,2646.1,2646.0,0.812]
[1729405446711,0.1890735,2646.1,2646.0,0.812]
[1729405447306,1.17629,2646.4,2646.0,0.812]
[1729405447307,0.1890735,2646.2,2646.0,0.812]
[1729405447507,1.67376484,2646.1,2646.0,0.812]
[1729405447708,2.2842209,2646.3,2646.0,0.812]
[1729405448012,1.48471018,2646.1,2646.0,0.812]
[1729405448214,1.67378368,2646.1,2646.0,0.812]
[1729405448804,0.1890735,2646.1,2646.0,0.813]
[1729405449207,0.1890735,2646.2,2646.0,0.813]
[1729405449404,0.1890735,2646.1,2646.0,0.813]
[1729405449608,0.1890735,2646.2,2646.0,0.813]
[1729405449804,0.1890735,2646.1,2646.0,0.813]
[1729405450204,0.18907952,2646.2,2646.0,0.813]
[1729405451418,1.48435114,2646.1,2646.0,0.813]
[1729405453610,0.56699973,2646.2,2646.0,0.813]
[1729405453814,0.18907973,2646.1,2646.0,0.813]
[1729405454710,3.27332475,2646.4,2646.0,0.813]
[1729405454908,0.37791,2646.2,2646.0,0.813]
[1729405455108,0.18908593,2646.1,2646.0,0.813]
[1729405455308,1.48383674,2646.1,2646.0,0.813]
[1729405456215,1.67292267,2646.1,2646.0,0.813]
[1729405456620,1.86176674,2646.1,2646.0,0.813]
[1729405456805,1.86176674,2646.1,2645.9,0.3983]
[1729405456806,0.18908593,2646.1,2645.9,0.813]
[1729405457007,1.19804,2646.0,2645.9,0.813]
[1729405457213,1.38712593,2646.0,2645.9,0.813]
[1729405458210,1.38712593,2646.0,2645.6,0.4173]
[1729405458211,1.00918593,2646.0,2645.5,4.0622]
[1729405458411,1.00918593,2646.0,2645.6,0.813]
[1729405458412,1.48319246,2645.8,2645.6,0.813]
[1729405458612,1.48319246,2645.8,2645.5,4.0622]
[1729405458814,1.48319246,2645.8,2645.6,0.813]
[1729405459115,1.48319246,2645.8,2645.5,4.0622]
[1729405459307,1.48319246,2645.8,2645.6,0.813]
[1729405460211,1.86115246,2645.9,2645.5,4.0622]
[1729405460416,1.86115246,2645.9,2645.6,0.813]
[1729405460611,1.48319246,2645.8,2645.6,0.813]
[1729405461319,1.48319246,2645.8,2645.5,4.0622]
[1729405461513,1.48319246,2645.8,2645.6,0.813]
[1729405462222,1.86115246,2645.9,2645.6,0.813]
[1729405462722,1.86115246,2645.9,2645.7,0.813]
[1729405463917,1.48319246,2645.9,2645.7,0.813]
[1729405464118,1.67230166,2645.9,2645.7,0.813]
[1729405464323,2.05026166,2645.9,2645.7,0.813]
[1729405464619,1.86115246,2645.9,2645.7,0.813]
[1729405468319,1.86115246,2645.9,2645.8,0.418]
[1729405469115,1.48319246,2645.9,2645.8,0.418]
[1729405470113,1.48319246,2646.0,2645.8,0.418]
[1729405470318,1.67229432,2646.0,2645.8,0.418]
[1729405470714,1.67229432,2646.0,2645.8,1.231]
[1729405470922,1.48319246,2645.9,2645.8,1.231]
[1729405471223,1.48319246,2646.0,2645.8,1.231]
[1729405471520,1.6722952,2646.0,2645.9,0.3991]
[1729405472315,0.18910274,2646.0,2645.9,0.3991]
[1729405472822,1.48085554,2646.0,2645.9,0.3991]
[1729405473024,1.66995828,2646.0,2645.9,0.3991]
[1729405473324,1.48085554,2646.0,2645.9,0.3991]
[1729405474929,1.48085554,2646.0,2645.8,1.231]
[1729405474930,5.63799554,2646.0,2645.8,0.418]
[1729405475919,5.26005554,2646.0,2645.8,0.418]
[1729405476419,1.48085554,2645.9,2645.8,0.418]
[1729405476827,3.7792,2645.9,2645.8,0.418]
[1729405477231,5.26005554,2645.9,2645.8,0.418]
[1729405479218,5.44916073,2645.9,2645.8,0.418]
[1729405480238,3.96830519,2645.9,2645.8,0.418]
[1729405481233,0.37797,2645.8,2645.6,1.6316]